bitfinex/quotes_BTCUSD_20250808
["timestamp","ask_amount","ask_price","bid_price","bid_amount"]
[1754626288509,0.14024402,116750.0,116740.0,2.1880625]
[1754626288890,0.14224402,116750.0,116740.0,2.1880625]
[1754626289096,0.14224402,116750.0,116740.0,2.5280625]
[1754626289335,0.14224402,116750.0,116740.0,2.5307225]
[1754626293233,0.14224402,116750.0,116740.0,2.6807225]
[1754626293446,0.14224402,116750.0,116740.0,2.04667672]
[1754626293622,0.14224402,116750.0,116740.0,2.6807225]
[1754626293963,0.14224402,116750.0,116740.0,2.6780625]
[1754626297204,0.14224402,116750.0,116740.0,2.6807225]
[1754626298358,0.14224402,116750.0,116740.0,2.6780625]
[1754626300026,0.14224402,116750.0,116740.0,2.99774539]
[1754626302204,0.14024402,116750.0,116740.0,2.99774539]
[1754626302995,0.14324402,116750.0,116740.0,2.99774539]
[1754626312360,0.02577,116770.0,116760.0,0.52129153]
[1754626312560,0.2492981,116810.0,116800.0,0.17123287]
[1754626312780,0.07148505,116810.0,116800.0,0.62189576]
[1754626312990,0.07148505,116810.0,116800.0,0.30487287]
[1754626312991,0.08893407,116810.0,116800.0,0.30487287]
[1754626313195,0.11470407,116810.0,116800.0,0.30487287]
[1754626313402,0.02777743,116810.0,116800.0,1.22578076]
[1754626313586,0.02777743,116810.0,116800.0,1.2258554]
[1754626313728,0.02777743,116810.0,116800.0,1.2515544]
[1754626314292,0.02777743,116810.0,116800.0,1.26020489]
[1754626315102,0.02777743,116810.0,116800.0,1.286121]
[1754626315314,0.02777743,116810.0,116800.0,1.288121]
[1754626315796,0.02777743,116810.0,116800.0,1.286121]
[1754626319254,0.02777743,116810.0,116800.0,1.288201]
[1754626319411,0.02777743,116810.0,116800.0,1.310721]
[1754626320184,4.743e-05,116810.0,116800.0,1.950721]
[1754626321743,0.00204743,116810.0,116800.0,1.950721]
[1754626321974,0.00204743,116810.0,116800.0,2.26774389]
[1754626322194,0.00204743,116810.0,116800.0,1.99901517]
[1754626322435,0.00204743,116810.0,116800.0,2.31869806]
[1754626322876,0.00404743,116810.0,116800.0,2.58059806]
[1754626323369,0.00404743,116810.0,116800.0,2.61029575]
[1754626324821,0.00404743,116810.0,116800.0,2.5031393]
[1754626325884,0.00404743,116810.0,116800.0,2.33980161]
[1754626326094,0.00404743,116810.0,116800.0,2.44236744]
[1754626327718,0.00404743,116810.0,116800.0,2.18046744]
[1754626330923,0.03177743,116810.0,116800.0,2.15794744]
[1754626333655,0.03177743,116810.0,116800.0,2.18151744]
[1754626333825,0.03177743,116810.0,116800.0,1.33760522]
[1754626334029,0.03177743,116810.0,116800.0,2.18151744]
[1754626334550,0.03177743,116810.0,116800.0,1.82442744]
[1754626334725,0.03177743,116810.0,116800.0,1.95582744]
[1754626335027,0.03177743,116810.0,116800.0,1.95785744]
[1754626335233,0.03177743,116810.0,116800.0,1.98142744]
[1754626336389,0.00404743,116810.0,116800.0,1.98142744]
[1754626337022,0.00404743,116810.0,116800.0,1.98408744]
[1754626337994,0.00404743,116810.0,116800.0,2.01238161]
[1754626338806,0.00204743,116810.0,116800.0,2.21238161]
[1754626339067,4.743e-05,116810.0,116800.0,2.21238161]
[1754626339266,0.00204743,116810.0,116800.0,2.21238161]
[1754626339442,0.02796,116830.0,116820.0,0.52120356]
[1754626339641,0.02800742,116830.0,116820.0,1.16346178]
[1754626339853,0.02995742,116830.0,116820.0,1.16353642]
[1754626340051,0.02995742,116830.0,116820.0,1.18922942]
[1754626340636,0.02995742,116830.0,116820.0,1.52922942]
[1754626340637,0.03095742,116830.0,116820.0,1.52922942]
[1754626342407,0.03095742,116830.0,116820.0,1.68125942]
[1754626342638,0.03095742,116830.0,116820.0,1.25930331]
[1754626342844,0.03095742,116830.0,116820.0,1.68125942]
[1754626345260,0.03095742,116830.0,116820.0,1.67922942]
[1754626345685,0.03095742,116830.0,116820.0,1.70478942]
[1754626346176,0.03095742,116830.0,116820.0,1.68121942]
[1754626346478,0.03095742,116830.0,116820.0,1.67918942]
[1754626347331,0.03095742,116830.0,116820.0,1.70478942]
[1754626348287,0.00104742,116830.0,116820.0,1.70478942]
[1754626348717,0.00104742,116830.0,116820.0,2.23195243]
[1754626349205,0.00104742,116830.0,116820.0,2.23461243]
[1754626350065,4.742e-05,116830.0,116820.0,2.10121243]
[1754626350279,0.00104742,116830.0,116820.0,2.23461243]
[1754626350602,0.00104742,116830.0,116820.0,1.28549331]
[1754626350808,0.00104742,116830.0,116820.0,1.70728607]
[1754626351288,0.00204742,116830.0,116820.0,1.73698376]
[1754626354575,0.00204742,116830.0,116820.0,1.82716376]
[1754626354783,0.00204742,116830.0,116820.0,1.73698376]
[1754626355008,0.00204742,116830.0,116820.0,1.70462607]
[1754626355347,0.00204742,116830.0,116820.0,1.70458607]
[1754626357245,0.00204742,116830.0,116820.0,1.70724607]
[1754626359883,0.00204742,116830.0,116820.0,2.15403883]
[1754626360094,0.00204742,116830.0,116820.0,2.18373652]
[1754626360758,1e-08,116830.0,116820.0,2.18373652]
[1754626361462,0.02796,116850.0,116840.0,0.67117425]
[1754626361644,0.02995742,116850.0,116840.0,1.73494188]
[1754626362026,0.02995742,116850.0,116840.0,1.73501652]
[1754626362237,0.02995742,116850.0,116840.0,1.76070452]
[1754626362648,0.03195742,116850.0,116840.0,0.783799]
[1754626362852,0.03195742,116850.0,116840.0,0.98891176]
[1754626363282,0.22056604,116850.0,116840.0,0.417119]
[1754626364080,0.04940644,116850.0,116840.0,0.417119]
[1754626364493,0.04740644,116850.0,116840.0,0.417119]
[1754626364885,0.04740644,116850.0,116840.0,0.421119]
[1754626365202,0.04740644,116850.0,116840.0,0.84291176]
[1754626366466,0.02995742,116850.0,116840.0,0.84291176]
[1754626376415,0.02995742,116850.0,116840.0,0.421119]
[1754626376590,0.02995742,116850.0,116840.0,0.84291176]
[1754626376795,0.02995742,116850.0,116840.0,0.84497176]
[1754626378518,0.02995742,116850.0,116840.0,0.99497176]
[1754626378831,0.02995742,116850.0,116840.0,0.573179]
[1754626378971,0.02995742,116850.0,116840.0,0.99497176]
[1754626379564,0.02995742,116850.0,116840.0,1.01749176]
[1754626379770,0.02995742,116850.0,116840.0,0.595699]
[1754626380014,0.02995742,116850.0,116840.0,1.01749176]
[1754626380995,0.02800742,116850.0,116840.0,1.01749176]
[1754626383856,0.02800742,116850.0,116840.0,1.58928452]
[1754626383857,4.742e-05,116850.0,116840.0,1.58928452]
[1754626384035,4.742e-05,116850.0,116840.0,1.59194452]
[1754626384554,4.742e-05,116850.0,116840.0,1.92994452]
[1754626384761,0.00104742,116850.0,116840.0,1.92994452]
[1754626385466,4.742e-05,116850.0,116840.0,1.92994452]
[1754626386361,4.742e-05,116850.0,116840.0,1.92728452]
[1754626386978,4.742e-05,116850.0,116840.0,1.92528452]
[1754626387317,4.742e-05,116850.0,116840.0,1.92628452]
[1754626393456,4.742e-05,116850.0,116840.0,1.86128452]
[1754626397187,4.742e-05,116850.0,116840.0,1.86394452]
[1754626398676,4.742e-05,116850.0,116840.0,1.89223869]
[1754626398864,0.00204742,116850.0,116840.0,1.89223869]
[1754626399019,0.00204742,116850.0,116840.0,1.89123869]
[1754626400197,4.742e-05,116850.0,116840.0,1.89123869]
[1754626400557,0.00104742,116850.0,116840.0,1.89123869]
[1754626402622,0.00104742,116850.0,116840.0,0.91433317]
[1754626402856,0.00104742,116850.0,116840.0,1.89103869]
[1754626404520,0.00104742,116850.0,116840.0,1.88837869]
[1754626405055,0.00104742,116850.0,116840.0,1.72696452]
[1754626405189,0.02554742,116850.0,116840.0,1.86004452]
[1754626405823,0.02861742,116850.0,116840.0,1.86004452]
[1754626406024,0.03065742,116850.0,116840.0,1.86004452]
[1754626407591,0.03065742,116850.0,116840.0,1.41367176]
[1754626409444,0.03065742,116850.0,116840.0,0.991879]
[1754626409691,0.03065742,116850.0,116840.0,1.41367176]
[1754626409833,0.03065742,116850.0,116840.0,0.991879]
[1754626410035,0.03065742,116850.0,116840.0,1.41367176]
[1754626411753,0.03065742,116850.0,116840.0,0.991879]
[1754626411972,0.03065742,116850.0,116840.0,1.41367176]
[1754626418100,0.03065742,116850.0,116840.0,1.67557176]
[1754626420847,0.03065742,116850.0,116840.0,1.67754176]
[1754626422283,0.03065742,116850.0,116840.0,1.255749]
[1754626422600,0.03065742,116850.0,116840.0,1.67754176]
[1754626424511,0.02999281,116850.0,116840.0,1.67754176]
[1754626425576,0.02999281,116850.0,116840.0,2.09933452]
[1754626426080,0.02999281,116850.0,116840.0,1.96625452]
[1754626426220,0.02999281,116850.0,116840.0,2.09921452]
[1754626429524,0.02999281,116850.0,116840.0,2.12271452]
[1754626429727,0.02999281,116850.0,116840.0,1.70092176]
[1754626430542,0.02999281,116850.0,116840.0,2.12271452]
[1754626434933,0.02999281,116850.0,116840.0,1.91176748]
[1754626436414,0.02999281,116850.0,116840.0,1.75530748]
[1754626436598,0.02999281,116850.0,116840.0,1.43701824]
[1754626436848,0.02999281,116850.0,116840.0,1.56993824]
[1754626437031,0.02999281,116850.0,116840.0,1.88625748]
[1754626437816,0.20115241,116850.0,116840.0,0.92993824]
[1754626438935,0.02999281,116850.0,116840.0,0.92993824]
[1754626439375,0.20215241,116850.0,116840.0,0.92993824]
[1754626440859,0.20215241,116850.0,116840.0,0.613619]
[1754626441279,0.2017696,116850.0,116840.0,0.613619]
[1754626441504,0.21921862,116850.0,116840.0,0.26197464]
[1754626441712,0.22021862,116850.0,116840.0,0.13295464]
[1754626441933,0.22021862,116850.0,116840.0,0.30412889]
[1754626442610,0.21921862,116850.0,116840.0,0.30412889]
[1754626442816,0.21821862,116850.0,116840.0,0.30712889]
[1754626443030,0.21821862,116850.0,116840.0,0.31012889]
[1754626443250,0.21821862,116850.0,116840.0,0.13895464]
[1754626444597,0.21821862,116850.0,116840.0,0.31012889]
[1754626454343,0.01744902,116850.0,116840.0,0.31226889]
[1754626454530,0.04116902,116850.0,116840.0,0.33503889]
[1754626454716,0.21734862,116850.0,116840.0,0.31226889]
[1754626454922,0.21734862,116850.0,116840.0,0.31012889]
[1754626455879,0.04618902,116850.0,116840.0,0.31012889]
[1754626456719,0.21734862,116850.0,116840.0,0.31012889]
[1754626458578,0.21734862,116850.0,116840.0,0.31004889]
[1754626459004,0.04618902,116850.0,116840.0,0.31004889]
[1754626462725,0.04618902,116850.0,116840.0,0.62648028]
[1754626464805,0.21734862,116850.0,116840.0,0.62648028]
[1754626470847,0.21734862,116850.0,116840.0,0.00607464]
[1754626471055,0.53378001,116850.0,116840.0,0.13879464]
[1754626471504,0.21734862,116850.0,116840.0,0.13879464]
[1754626481337,0.18860862,116850.0,116840.0,0.31210889]
[1754626481534,0.01744902,116850.0,116840.0,0.65131028]
[1754626481726,0.18860862,116850.0,116840.0,0.65397028]
[1754626482239,0.18860862,116850.0,116840.0,0.65131028]
[1754626484900,0.01744902,116850.0,116840.0,0.96774167]
[1754626485109,0.01744902,116850.0,116840.0,0.97040167]
[1754626489390,0.01744902,116850.0,116840.0,0.33753889]
[1754626489821,0.01744902,116850.0,116840.0,0.97040167]
[1754626491986,0.01744902,116850.0,116840.0,0.96774167]
[1754626492412,0.01744902,116850.0,116840.0,0.65131028]
[1754626493392,0.04027902,116850.0,116840.0,0.65131028]
[1754626494255,0.01744902,116850.0,116840.0,0.65131028]
[1754626495422,0.01744902,116850.0,116840.0,0.96774167]
[1754626495778,0.04027902,116850.0,116840.0,0.96774167]
[1754626498744,0.04322902,116850.0,116840.0,0.96774167]
[1754626501154,0.04027902,116850.0,116840.0,0.96774167]
[1754626501350,0.01744902,116850.0,116840.0,0.96774167]
[1754626501506,0.01744902,116850.0,116840.0,0.33487889]
[1754626501709,0.01744902,116850.0,116840.0,0.96774167]
[1754626503077,0.04027902,116850.0,116840.0,0.96774167]
[1754626503673,0.04027902,116850.0,116840.0,0.65131028]
[1754626504383,0.04027902,116850.0,116840.0,0.96774167]
[1754626511660,0.04027902,116850.0,116840.0,0.33487889]
[1754626511973,0.04027902,116850.0,116840.0,0.65131028]
[1754626512367,0.04027902,116850.0,116840.0,0.96774167]
[1754626512601,0.04027902,116850.0,116840.0,0.33487889]
[1754626512737,0.04027902,116850.0,116840.0,0.96774167]
[1754626513511,0.01744902,116850.0,116840.0,0.96774167]
[1754626513933,0.01744902,116850.0,116840.0,0.33487889]
[1754626514138,0.01744902,116850.0,116840.0,0.96774167]
[1754626515171,0.01744902,116850.0,116840.0,0.99343467]
[1754626517604,0.04048902,116850.0,116840.0,0.99343467]
[1754626519859,0.04353902,116850.0,116840.0,0.99343467]
[1754626524713,0.01744902,116850.0,116840.0,0.99343467]
[1754626527442,0.04048902,116850.0,116840.0,0.99343467]
[1754626528518,0.21469862,116850.0,116840.0,0.99343467]
[1754626529052,0.04353902,116850.0,116840.0,0.99343467]
[1754626529771,0.01744902,116850.0,116840.0,0.99343467]
[1754626530742,0.18860862,116850.0,116840.0,0.99343467]
[1754626532715,0.21164862,116850.0,116840.0,0.99343467]
[1754626534484,0.04048902,116850.0,116840.0,0.99343467]
[1754626534706,0.01744902,116850.0,116840.0,0.99343467]
[1754626536508,0.04048902,116850.0,116840.0,0.99343467]
[1754626537464,0.01744902,116850.0,116840.0,0.99343467]
[1754626537675,0.17114495,116860.0,116850.0,0.17114638]
[1754626537878,0.19069397,116860.0,116850.0,0.13228]
[1754626538097,0.19069397,116860.0,116850.0,0.44871139]
[1754626538367,0.21678397,116860.0,116850.0,0.61994563]
[1754626538560,0.21678397,116860.0,116850.0,0.17123424]
[1754626538759,0.53321536,116860.0,116850.0,0.13235464]
[1754626538982,0.21678397,116860.0,116850.0,0.30551424]
[1754626539436,0.21678397,116860.0,116850.0,0.13735464]
[1754626539658,0.21678397,116860.0,116850.0,0.30851424]
[1754626540739,0.21678397,116860.0,116850.0,0.45378603]
[1754626540946,0.21678397,116860.0,116850.0,0.13731464]
[1754626541160,0.53321536,116860.0,116850.0,0.13731464]
[1754626541304,0.53321536,116860.0,116850.0,0.00507464]
[1754626542194,0.18859397,116860.0,116850.0,0.00709464]
[1754626542404,0.21678397,116860.0,116850.0,0.00507464]
[1754626542822,0.53321536,116860.0,116850.0,0.00507464]
[1754626543110,0.21163397,116860.0,116850.0,0.00507464]
[1754626543329,0.21678397,116860.0,116850.0,0.32150603]
[1754626543468,0.21678397,116860.0,116850.0,0.49266563]
[1754626545404,0.21678397,116860.0,116850.0,0.17623424]
[1754626545595,0.21678397,116860.0,116850.0,0.49266563]
[1754626546724,0.18859397,116860.0,116850.0,0.51845563]
[1754626546935,0.18859397,116860.0,116850.0,0.52111563]
[1754626547297,0.01744902,116860.0,116850.0,0.52111563]
[1754626547697,0.0004,116870.0,116860.0,0.17114495]
[1754626547896,0.0004,116870.0,116860.0,0.96465773]
[1754626548524,0.0004,116870.0,116860.0,0.99034573]
[1754626548917,0.01784902,116870.0,116860.0,0.99242037]
[1754626549625,0.01784902,116870.0,116860.0,0.99542037]
[1754626550081,0.01784902,116870.0,116860.0,1.28228248]
[1754626550280,0.01784902,116870.0,116860.0,1.43228248]
[1754626550496,0.0004,116870.0,116860.0,1.69418248]
[1754626551268,0.0004,116870.0,116860.0,1.69118248]
[1754626551680,0.0004,116870.0,116860.0,1.68918248]
[1754626551991,0.0004,116870.0,116860.0,1.69118248]
[1754626552187,0.0004,116870.0,116860.0,2.18590804]
[1754626552742,0.0004,116870.0,116860.0,1.92200804]
[1754626553233,0.0004,116870.0,116860.0,1.93057279]
[1754626553691,0.0024,116870.0,116860.0,1.93057279]
[1754626554259,0.0024,116870.0,116860.0,1.95667072]
[1754626554999,0.0024,116870.0,116860.0,1.92837655]
[1754626555436,0.0024,116870.0,116860.0,1.61194516]
[1754626557278,0.0024,116870.0,116860.0,1.87384516]
[1754626563099,0.0024,116870.0,116860.0,2.19027655]
[1754626569607,0.0024,116870.0,116860.0,2.53027655]
[1754626572025,0.0024,116870.0,116860.0,2.26837655]
[1754626578029,0.0024,116870.0,116860.0,2.53027655]
[1754626579258,0.0024,116870.0,116860.0,2.52761655]
[1754626579807,0.0024,116870.0,116860.0,2.53027655]
[1754626582777,0.0024,116870.0,116860.0,2.52761655]
[1754626583876,0.0024,116870.0,116860.0,2.53027655]
[1754626587395,0.0024,116870.0,116860.0,2.52761655]
[1754626588629,0.02638,116870.0,116860.0,2.52761655]
[1754626589274,0.02931,116870.0,116860.0,2.52761655]
[1754626589473,0.03129,116870.0,116860.0,2.50396655]
[1754626590203,0.0024,116870.0,116860.0,2.52746655]
[1754626591309,0.02638,116870.0,116860.0,2.52746655]
[1754626591513,0.03129,116870.0,116860.0,2.50396655]
[1754626591866,0.03129,116870.0,116860.0,2.52746655]
[1754626592456,0.03129,116870.0,116860.0,2.50396655]
[1754626593940,0.03129,116870.0,116860.0,2.52746655]
[1754626595812,0.02931,116870.0,116860.0,2.52746655]
[1754626596014,0.0024,116870.0,116860.0,2.52746655]
[1754626597098,0.02931,116870.0,116860.0,2.52746655]
[1754626598470,0.02731,116870.0,116860.0,2.52746655]
[1754626599262,0.02438,116870.0,116860.0,2.52746655]
[1754626599466,0.0004,116870.0,116860.0,2.52746655]
[1754626600187,0.02438,116870.0,116860.0,2.52746655]
[1754626600404,0.02538,116870.0,116860.0,2.52746655]
[1754626600733,0.02438,116870.0,116860.0,2.52746655]
[1754626601225,0.02538,116870.0,116860.0,2.52746655]
[1754626602297,0.02736,116870.0,116860.0,2.52746655]
[1754626602497,0.03029,116870.0,116860.0,2.50396655]
[1754626602830,0.03029,116870.0,116860.0,2.36962655]
[1754626603054,0.03029,116870.0,116860.0,2.50146655]
[1754626603530,0.03029,116870.0,116860.0,1.85319516]
[1754626603722,0.03029,116870.0,116860.0,1.98503516]
[1754626603938,0.03029,116870.0,116860.0,1.83503516]
[1754626604185,0.03029,116870.0,116860.0,0.80843238]
[1754626604391,0.03029,116870.0,116860.0,0.60023238]
[1754626604606,0.03029,116870.0,116860.0,1.23309516]
[1754626605236,0.03029,116870.0,116860.0,1.25666377]
[1754626605440,0.03029,116870.0,116860.0,1.57309516]
[1754626607296,0.03029,116870.0,116860.0,1.44129516]
[1754626607513,0.03029,116870.0,116860.0,1.57309516]
[1754626610898,0.03029,116870.0,116860.0,0.94023238]
[1754626611127,0.03029,116870.0,116860.0,1.57309516]
[1754626612259,0.03029,116870.0,116860.0,0.94023238]
[1754626612477,0.03029,116870.0,116860.0,1.57309516]
[1754626613326,0.03029,116870.0,116860.0,1.83499516]
[1754626621551,0.03029,116870.0,116860.0,1.20213238]
[1754626621739,0.03029,116870.0,116860.0,1.83499516]
[1754626629875,0.03029,116870.0,116860.0,1.20213238]
[1754626630027,0.03029,116870.0,116860.0,1.83499516]
[1754626639209,0.03029,116870.0,116860.0,1.83710516]
[1754626643293,0.03029,116870.0,116860.0,1.86084516]
[1754626644811,0.03029,116870.0,116860.0,1.72904516]
[1754626645011,0.03029,116870.0,116860.0,1.86068516]
[1754626645491,0.03029,116870.0,116860.0,1.72904516]
[1754626645676,0.03029,116870.0,116860.0,1.86068516]
[1754626645820,0.03029,116870.0,116860.0,1.22782238]
[1754626646019,0.03029,116870.0,116860.0,1.86068516]
[1754626650621,0.03029,116870.0,116860.0,1.07244238]
[1754626650821,0.53530072,116870.0,116860.0,7.464e-05]
[1754626651026,0.21886933,116870.0,116860.0,0.13167464]
[1754626651227,0.53530072,116870.0,116860.0,0.13167464]
[1754626651625,0.53430072,116870.0,116860.0,7.464e-05]
[1754626651867,0.53430072,116870.0,116860.0,0.13167464]
[1754626653682,0.53430072,116870.0,116860.0,0.13267464]
[1754626653898,0.53430072,116870.0,116860.0,0.13167464]
[1754626654107,0.53430072,116870.0,116860.0,0.13267464]
[1754626654412,0.53430072,116870.0,116860.0,0.13467464]
[1754626658320,0.21786933,116870.0,116860.0,0.13467464]
[1754626658550,0.53430072,116870.0,116860.0,0.13467464]
[1754626658760,0.21786933,116870.0,116860.0,0.13467464]
[1754626658974,0.21786933,116870.0,116860.0,0.30581959]
[1754626659162,0.53430072,116870.0,116860.0,0.30581959]
[1754626659373,0.53430072,116870.0,116860.0,0.13467464]
[1754626665079,0.21786933,116870.0,116860.0,0.13467464]
[1754626665255,0.53430072,116870.0,116860.0,0.13467464]
[1754626673647,0.21786933,116870.0,116860.0,0.13467464]
[1754626673861,0.53430072,116870.0,116860.0,0.13467464]
[1754626675074,0.21786933,116870.0,116860.0,0.13467464]
[1754626675205,0.53430072,116870.0,116860.0,0.13467464]
[1754626677621,0.53430072,116870.0,116860.0,0.00307464]
[1754626677965,0.53430072,116870.0,116860.0,0.13459464]
[1754626679398,0.21786933,116870.0,116860.0,0.13459464]
[1754626679629,0.53430072,116870.0,116860.0,0.13459464]
[1754626681753,0.66582072,116870.0,116860.0,0.13459464]
[1754626683629,0.53430072,116870.0,116860.0,0.13459464]
[1754626687905,0.21786933,116870.0,116860.0,0.13459464]
[1754626688085,0.53430072,116870.0,116860.0,0.13459464]
[1754626692302,0.21786933,116870.0,116860.0,0.13459464]
[1754626692528,0.53430072,116870.0,116860.0,0.13459464]
[1754626692736,0.21786933,116870.0,116860.0,0.13459464]
[1754626693040,0.53430072,116870.0,116860.0,0.13459464]
[1754626694422,0.21786933,116870.0,116860.0,0.13459464]
[1754626694638,0.53430072,116870.0,116860.0,0.13451464]
[1754626697474,0.53430072,116870.0,116860.0,0.00307464]
[1754626697658,0.53430072,116870.0,116860.0,0.13447464]
[1754626701180,0.53430072,116870.0,116860.0,0.00307464]
[1754626701410,0.53430072,116870.0,116860.0,0.13447464]
[1754626702547,0.61510544,116870.0,116860.0,0.13447464]
[1754626703094,0.74650544,116870.0,116860.0,0.13447464]
[1754626703526,0.66570072,116870.0,116860.0,0.13447464]
[1754626705386,0.66570072,116870.0,116860.0,0.00307464]
[1754626705594,0.66570072,116870.0,116860.0,0.13443464]
[1754626713417,0.53430072,116870.0,116860.0,0.13443464]
[1754626715074,0.53430072,116870.0,116860.0,0.21443464]
[1754626715458,0.66562072,116870.0,116860.0,0.21443464]
[1754626719962,0.34918933,116870.0,116860.0,0.21443464]
[1754626720137,0.66562072,116870.0,116860.0,0.21443464]
[1754626720981,0.34918933,116870.0,116860.0,0.21443464]
[1754626721189,0.66562072,116870.0,116860.0,0.21443464]
[1754626724378,0.66562072,116870.0,116860.0,0.08307464]
[1754626724585,0.66562072,116870.0,116860.0,0.21435464]
[1754626727254,0.66562072,116870.0,116860.0,0.08307464]
[1754626727461,0.66562072,116870.0,116860.0,0.21435464]
[1754626730179,0.34918933,116870.0,116860.0,0.21435464]
[1754626730389,0.66562072,116870.0,116860.0,0.21435464]
[1754626733851,0.34918933,116870.0,116860.0,0.21435464]
[1754626734260,0.66562072,116870.0,116860.0,0.21435464]
[1754626736557,0.34918933,116870.0,116860.0,0.21435464]
[1754626736737,0.66562072,116870.0,116860.0,0.21435464]
[1754626737153,0.34918933,116870.0,116860.0,0.21435464]
[1754626737448,0.66562072,116870.0,116860.0,0.21435464]
[1754626738133,0.34918933,116870.0,116860.0,0.21435464]
[1754626738305,0.66562072,116870.0,116860.0,0.21435464]
[1754626738929,0.34918933,116870.0,116860.0,0.21435464]
[1754626739143,0.66562072,116870.0,116860.0,0.21435464]
[1754626742042,0.66562072,116870.0,116860.0,0.08307464]
[1754626742227,0.66562072,116870.0,116860.0,0.21427464]
[1754626744266,0.34918933,116870.0,116860.0,0.21427464]
[1754626744445,0.66562072,116870.0,116860.0,0.21427464]
[1754626745073,0.66562072,116870.0,116860.0,0.08307464]
[1754626745442,0.66562072,116870.0,116860.0,0.21423464]
[1754626747229,0.66562072,116870.0,116860.0,0.08307464]
[1754626747402,1.15570847,116870.0,116860.0,0.08307464]
[1754626748955,1.49570847,116870.0,116860.0,0.08307464]
[1754626750500,1.17927708,116870.0,116860.0,0.08307464]
[1754626751656,0.86284569,116870.0,116860.0,0.08307464]
[1754626751830,1.17927708,116870.0,116860.0,0.08307464]
[1754626757280,0.86284569,116870.0,116860.0,0.08307464]
[1754626757514,1.17927708,116870.0,116860.0,0.08307464]
[1754626763878,0.86284569,116870.0,116860.0,0.08307464]
[1754626764078,1.17927708,116870.0,116860.0,0.08307464]
[1754626769691,0.86284569,116870.0,116860.0,0.08307464]
[1754626770118,1.17927708,116870.0,116860.0,0.08307464]
[1754626773584,0.86284569,116870.0,116860.0,0.08307464]
[1754626773730,1.17927708,116870.0,116860.0,0.08307464]
[1754626773934,0.86284569,116870.0,116860.0,0.08307464]
[1754626774149,1.17927708,116870.0,116860.0,0.08307464]
[1754626776589,1.49570847,116870.0,116860.0,0.08307464]
[1754626777042,1.52140147,116870.0,116860.0,0.08307464]
[1754626778572,1.52140147,116870.0,116860.0,0.08107464]
[1754626779304,1.52140147,116870.0,116860.0,0.08007464]
[1754626780416,1.52440147,116870.0,116860.0,0.08007464]
[1754626801726,1.84083286,116870.0,116860.0,0.08007464]
[1754626806804,1.52440147,116870.0,116860.0,0.08007464]
[1754626813721,1.84083286,116870.0,116860.0,0.08007464]
[1754626816026,0.89153869,116870.0,116860.0,0.08007464]
[1754626816229,1.84083286,116870.0,116860.0,0.08007464]
[1754626816760,0.52860862,116850.0,116840.0,0.02316]
[1754626816936,0.52862327,116840.0,116830.0,0.09350762]
[1754626817109,1.37918816,116840.0,116830.0,0.09556504]
[1754626817632,1.40488916,116840.0,116830.0,0.09556504]
[1754626818055,1.42956916,116840.0,116830.0,0.09556504]
[1754626818216,1.51636341,116840.0,116830.0,0.09556504]
[1754626818392,1.51636341,116840.0,116830.0,0.02608742]
[1754626818969,0.88350063,116840.0,116830.0,0.02608742]
[1754626819405,1.49168341,116840.0,116830.0,0.02608742]
[1754626821330,1.49168341,116840.0,116830.0,0.02874742]
[1754626822334,1.49168341,116840.0,116830.0,0.02608742]
[1754626824567,1.50036531,116840.0,116830.0,0.02608742]
[1754626825834,1.52504531,116840.0,116830.0,0.02608742]
[1754626827084,1.52799531,116840.0,116830.0,0.02608742]
[1754626827615,1.53014531,116840.0,116830.0,0.02608742]
[1754626828225,1.53014531,116840.0,116830.0,0.00205742]
[1754626829240,1.53014531,116840.0,116830.0,4.742e-05]
[1754626830629,0.89728253,116840.0,116830.0,4.742e-05]
[1754626830806,1.53014531,116840.0,116830.0,4.742e-05]
[1754626834309,0.89728253,116840.0,116830.0,4.742e-05]
[1754626834483,1.53014531,116840.0,116830.0,4.742e-05]
[1754626839865,1.8465767,116840.0,116830.0,4.742e-05]
[1754626840928,1.53014531,116840.0,116830.0,4.742e-05]
[1754626841555,1.53114531,116840.0,116830.0,4.742e-05]
[1754626859226,0.89828253,116840.0,116830.0,4.742e-05]
[1754626859447,1.8475767,116840.0,116830.0,4.742e-05]
[1754626867177,1.53114531,116840.0,116830.0,4.742e-05]
[1754626872702,1.8475767,116840.0,116830.0,4.742e-05]
[1754626880728,1.84316877,116840.0,116830.0,4.742e-05]
[1754626887268,1.84316877,116840.0,116830.0,1e-08]
[1754626887674,1.86816877,116840.0,116830.0,1e-08]
[1754626889217,1.86716877,116840.0,116830.0,1e-08]
[1754626889622,1.86916877,116840.0,116830.0,1e-08]
[1754626918027,1.86048687,116840.0,116830.0,1e-08]
[1754626920702,1.83548687,116840.0,116830.0,1e-08]
[1754626920879,1.49812934,116840.0,116830.0,0.02502001]
[1754626922688,1.52260934,116840.0,116830.0,0.02502001]
[1754626922897,1.52790934,116840.0,116830.0,0.00205001]
[1754626923121,0.89504656,116840.0,116830.0,1e-08]
[1754626923444,1.52790934,116840.0,116830.0,1e-08]
[1754626924237,1.52790934,116840.0,116830.0,0.02502001]
[1754626926277,1.52790934,116840.0,116830.0,0.00205001]
[1754626928825,1.52790934,116840.0,116830.0,0.02502001]
[1754626929360,1.52790934,116840.0,116830.0,0.00205001]
[1754626929481,0.89504656,116840.0,116830.0,0.00205001]
[1754626929694,1.52790934,116840.0,116830.0,0.00205001]
[1754626930104,1.52790934,116840.0,116830.0,1e-08]
[1754626931174,1.39698934,116840.0,116830.0,1e-08]
[1754626931434,1.52846934,116840.0,116830.0,1e-08]
[1754626944848,0.89560656,116840.0,116830.0,1e-08]
[1754626945064,1.52846934,116840.0,116830.0,1e-08]
[1754626962361,0.89560656,116840.0,116830.0,1e-08]
[1754626962498,1.52846934,116840.0,116830.0,1e-08]
[1754626970696,1.50075934,116840.0,116830.0,0.02656001]
[1754626971291,1.52486934,116840.0,116830.0,0.02656001]
[1754626971531,1.52796934,116840.0,116830.0,0.02656001]
[1754626972161,1.52796934,116840.0,116830.0,1e-08]
[1754626972859,1.52796934,116840.0,116830.0,0.00200001]
[1754626974001,0.89510656,116840.0,116830.0,0.00200001]
[1754626974140,1.52796934,116840.0,116830.0,0.00200001]
[1754626974562,1.52796934,116840.0,116830.0,1e-08]
[1754626976235,0.89510656,116840.0,116830.0,1e-08]
[1754626976476,0.73434656,116840.0,116830.0,0.02656001]
[1754626976754,0.28132943,116840.0,116830.0,0.41512902]
[1754626976930,0.38650843,116840.0,116830.0,0.09869763]
[1754626977063,0.40395745,116840.0,116830.0,0.09869763]
[1754626977263,1.06038884,116840.0,116830.0,0.09869763]
[1754626978713,0.74395745,116840.0,116830.0,0.09869763]
[1754626978940,0.27307745,116840.0,116830.0,0.41512902]
[1754626979164,0.40395745,116840.0,116830.0,0.41512902]
[1754626980828,0.40195745,116840.0,116830.0,0.41512902]
[1754626981234,0.40395745,116840.0,116830.0,0.41512902]
[1754626981757,0.40195745,116840.0,116830.0,0.09869763]
[1754626981973,0.40195745,116840.0,116830.0,0.09969763]
[1754626982188,0.40195745,116840.0,116830.0,0.03022001]
[1754626983194,0.71838884,116840.0,116830.0,0.03022001]
[1754626984332,0.40195745,116840.0,116830.0,0.03022001]